Workbook

Sheet Kalkulator
B9: Poziom dotacji | C9: Podwyższony
B10: PC/PIEC | C10: NIE
B11: =IF($C$10='Dane wejściowe'!$D$2,'Dane wejściowe'!$E$1,"") ->  | C11: Pompa Ciepła
B12: REKUPERACJA | C12: NIE
B13: OCIEPLENIE DACH/STROP | C13: NIE
B14: =IF($C$13='Dane wejściowe'!$I$2,'Dane wejściowe'!$J$1,"") ->  | C14: Dach
B15: =IF($C$13='Dane wejściowe'!$I$2,'Dane wejściowe'!$K$1,"") ->  | C15: Piana PUR
B16: =IF($C$13='Dane wejściowe'!$I$2,'Dane wejściowe'!$L$1,"") -> 
B17: OCIEPLENIE ŚCIAN ZEWNĘTRZNYCH | C17: NIE
B18: =IF($C$17='Dane wejściowe'!$N$2,'Dane wejściowe'!$O$1,"") -> 
B19: DRZWI | C19: NIE
B20: =IF($C$19='Dane wejściowe'!$Q$2,'Dane wejściowe'!$R$1,"") ->  | C20: 1
B21: =IF($C$19='Dane wejściowe'!$Q$2,"SUMA POWIERZCHNI DRZWI","") ->  | C21: =SUM(($C$23*$D$23),($C$24*$D$24),($C$25*$D$25)) -> 0
C22: =IF($C$19='Dane wejściowe'!$Q$2,'Dane wejściowe'!$T$2,"") ->  | D22: =IF($C$19='Dane wejściowe'!$Q$2,'Dane wejściowe'!$T$3,"") ->  | H22: Ilość lat kredytu: | I22: Wpłata własna:
B23: =IF(AND($C$19='Dane wejściowe'!$Q$2,$C$20>='Dane wejściowe'!$R$2),'Dane wejściowe'!$S$2,"") ->  | H23: 5 | I23: 0
B24: =IF(AND($C$19='Dane wejściowe'!$Q$2,$C$20>='Dane wejściowe'!$R$3),'Dane wejściowe'!$S$3,"") -> 
B25: =IF(AND($C$19='Dane wejściowe'!$Q$2,$C$20>='Dane wejściowe'!$R$4),'Dane wejściowe'!$S$4,"") -> 
B26: OKNA | C26: NIE
B27: =IF($C$26='Dane wejściowe'!$V$2,'Dane wejściowe'!$W$1,"") ->  | C27: 1 | H27: MAX DOTACJA CZYSTE POWIETRZE | I27: =Matryca!N13 -> 83000
B28: =IF($C$26='Dane wejściowe'!$V$2,"SUMA POWIERZCHNI OKIEN","") ->  | C28: =SUM(PRODUCT($C$30:$D$30),PRODUCT($C$31:$D$31),PRODUCT($C$32:$D$32),PRODUCT($C$33:$D$33),PRODUCT($C$34:$D$34),PRODUCT($C$35:$D$35),PRODUCT($C$36:$D$36),PRODUCT($C$37:$D$37),PRODUCT($C$38:$D$38),PRODUCT($C$39:$D$39)) -> 0 | H28: WYKORZYSTNA DOTACJA CZYSTE POWIETRZE | I28: =Matryca!N3 -> 33600
C29: =IF($C$26='Dane wejściowe'!$V$2,'Dane wejściowe'!$Y$2,"") ->  | D29: =IF($C$26='Dane wejściowe'!$V$2,'Dane wejściowe'!$Y$3,"") -> 
B30: =IF(AND($C$26='Dane wejściowe'!$V$2,$C$27>='Dane wejściowe'!$W$2),'Dane wejściowe'!$X$2,"") -> 
B31: =IF(AND($C$26='Dane wejściowe'!$V$2,$C$27>='Dane wejściowe'!$W$3),'Dane wejściowe'!$X$3,"") ->  | H31: CENA NETTO | I31: =Baza!F4 -> 1600
B32: =IF(AND($C$26='Dane wejściowe'!$V$2,$C$27>='Dane wejściowe'!$W$4),'Dane wejściowe'!$X$4,"") ->  | H32: VAT | I32: =Baza!F6 -> 368
B33: =IF(AND($C$26='Dane wejściowe'!$V$2,$C$27>='Dane wejściowe'!$W$5),'Dane wejściowe'!$X$5,"") ->  | H33: CENA BRUTTO | I33: =Baza!F8 -> 1968
B34: =IF(AND($C$26='Dane wejściowe'!$V$2,$C$27>='Dane wejściowe'!$W$6),'Dane wejściowe'!$X$6,"") ->  | H34: Wpłata własna klienta | I34: =IF(I33-I28>0,I33-I28,0) -> 0
B35: =IF(AND($C$26='Dane wejściowe'!$V$2,$C$27>='Dane wejściowe'!$W$7),'Dane wejściowe'!$X$7,"") -> 
B36: =IF(AND($C$26='Dane wejściowe'!$V$2,$C$27>='Dane wejściowe'!$W$8),'Dane wejściowe'!$X$8,"") ->  | H36: MARŻA DODATKOWA
B37: =IF(AND($C$26='Dane wejściowe'!$V$2,$C$27>='Dane wejściowe'!$W$9),'Dane wejściowe'!$X$9,"") -> 
B38: =IF(AND($C$26='Dane wejściowe'!$V$2,$C$27>='Dane wejściowe'!$W$10),'Dane wejściowe'!$X$10,"") -> 
B39: =IF(AND($C$26='Dane wejściowe'!$V$2,$C$27>='Dane wejściowe'!$W$11),'Dane wejściowe'!$X$11,"") -> 

Sheet Raty kredytowe
C9: Inbank - kredyt do 10 lat | F9: Santander - kredyt do 10 lat
C10: Ilość lat | D10: =Kredyt!J2 -> 5 | F10: Ilość lat | G10: =Kredyt!J3 -> 5
C11: Cena instalacji brutto | D11: =Kredyt!E2 -> 0 | F11: Cena instalacji brutto | G11: =Kredyt!E3 -> 0
C12: Wkład własny | D12: =Kredyt!F2 -> 0 | F12: Wkład własny | G12: =Kredyt!F3 -> 0
C13: Kwota kredytu | D13: =Kredyt!G2 -> 0 | F13: Kwota kredytu | G13: =Kredyt!G3 -> 0
C14: Maksymalna kwota kredytu | D14: 100000 | F14: Maksymalna kwota kredytu | G14: 80000
C15: RATA MIESIĘCZNA | D15: =Kredyt!M2 -> 0 | F15: RATA MIESIĘCZNA | G15: =Kredyt!M3 -> 0

Sheet Dane wejściowe (hidden)
B1: Poziom dotacji | D1: PC/PIEC | E1: Źródło grzewcze | G1: REKUPERACJA | I1: OCIEPLENIE DACH STROP | J1: Ocieplana przegroda | K1: Materiał | L1: Powierzchnia ocieplenia (m2) | N1: OCIEPLENIE ŚCIAN ZEWNĘTRZNYCH | O1: Powierzchnia ocieplana (m2) | Q1: DRZWI | R1: Ilość drzwi (szt.) | V1: OKNA | W1: Ilość okien (szt.)
B2: Najwyższy | D2: TAK | E2: Pompa Ciepła | G2: TAK | I2: TAK | J2: Strop | K2: Piana PUR | N2: TAK | Q2: TAK | R2: 1 | S2: Drzwi 1 | T2: Wysokość | V2: TAK | W2: 1 | X2: Okno 1 | Y2: Wysokość
B3: Podwyższony | D3: NIE | E3: Piec na pellet | G3: NIE | I3: NIE | J3: Dach | K3: Wełna | N3: NIE | Q3: NIE | R3: 2 | S3: Drzwi 2 | T3: Szerokość | V3: NIE | W3: 2 | X3: Okno 2 | Y3: Szerokość
E4: Piec zagazowujący drewno | R4: 3 | S4: Drzwi 3 | W4: 3 | X4: Okno 3
W5: 4 | X5: Okno 4
W6: 5 | X6: Okno 5
W7: 6 | X7: Okno 6
W8: 7 | X8: Okno 7
W9: 8 | X9: Okno 8
W10: 9 | X10: Okno 9
W11: 10 | X11: Okno 10
D17: =Kalkulator!$C$10 -> NIE | E17: =IF($D$17=$D$2,_xlfn.UNIQUE($E$2:$E$4),"") ->  | I17: =Kalkulator!$C$13 -> NIE | J17: =IF($I$17=$I$2,_xlfn.UNIQUE($J$2:$J$3),"") ->  | K17: =IF($I$17=$I$2,_xlfn.UNIQUE($K$2:$K$3),"") ->  | Q17: =Kalkulator!$C$19 -> NIE | R17: =IF($Q$17=$Q$2,_xlfn.UNIQUE($R$2:$R$4),"") ->  | V17: =Kalkulator!$C$26 -> NIE | W17: =IF($V$17=$V$2,_xlfn.UNIQUE($W$2:$W$11),"") -> 

Sheet Baza (hidden)
A1: Pompa Ciepła | B1: 55700 | F1: =Kalkulator!I36 -> 0 | I1: =Kalkulator!C10 -> NIE | J1: =Kalkulator!C12 -> NIE | K1: =Kalkulator!C13 -> NIE | L1: =Kalkulator!C17 -> NIE | M1: =Kalkulator!C19 -> NIE | N1: =Kalkulator!C26 -> NIE
A2: Piec na pellet | B2: 41000 | F2: Cena netto | I2: =Kalkulator!C11 -> Pompa Ciepła | J2: REKUPERACJA | K2: =Kalkulator!C15 -> Piana PUR | L2: =Kalkulator!B17 -> OCIEPLENIE ŚCIAN ZEWNĘTRZNYCH | M2: =Kalkulator!C20 -> 1 | N2: =Kalkulator!C27 -> 1 | O2: =A9 -> AUDYT
A3: Piec zagazowujący drewno | B3: 41000 | K3: =Kalkulator!C16 -> 0 | L3: =Kalkulator!C18 -> 0 | M3: =Kalkulator!C21 -> 0 | N3: =Kalkulator!C28 -> 0
A4: REKUPERACJA | B4: 16000 | F4: =SUM(I4:T4)+F1 -> 1600 | I4: =IF(I1=A11,_xlfn.IFS(I2=A1,B1,I2=A2,B2,I2=A3,B3),0) -> 0 | J4: =IF(J1=A11,B4,0) -> 0 | K4: =IF(K1=A11,K3*B5,0) -> 0 | L4: =IF(L1=A11,L3*B6,0) -> 0 | M4: =IF(M1=A11,M3*B7,0) -> 0 | N4: =IF(N1=A11,N3*B8,0) -> 0 | O4: =B9 -> 1600
A5: OCIEPLENIE DACH STROP | B5: 200 | F5: =F4-B9 -> 0
A6: OCIEPLENIE ŚCIAN ZEWNĘTRZNYCH | B6: 250 | F6: =(F5*0.08)+(B9*0.23) -> 368 | I6: =_xlfn.IFS(F10='Dane wejściowe'!B3,Baza!I4*0.7,Baza!F10='Dane wejściowe'!B2,Baza!I4) -> 0
A7: DRZWI | B7: 2500
A8: OKNA | B8: 1200 | F8: =F4+F6 -> 1968
A9: AUDYT | B9: 1600
F10: =Kalkulator!C9 -> Podwyższony
A11: TAK
A12: NIE

Sheet Kredyt (hidden)
E1: Kwota instalacji | F1: Wkład włany | G1: Kwota kredytu | H1: RRSO | I1: RRSO/m-c | J1: Okres kredytowania | K1: M-c | L1: Rata | M1: Warunki
A2: 2 | D2: Inbank | E2: =Kalkulator!I34 -> 0 | F2: =Kalkulator!I23 -> 0 | G2: =E2-F2 -> 0 | H2: 0.1284 | I2: =H2/12 -> 0.0107 | J2: =Kalkulator!H23 -> 5 | K2: =J2*12 -> 60 | L2: =(G2/K2)+G2*0.006 -> 0 | M2: =IFERROR(IF(J2=VLOOKUP(J2,A2:A11,1,0),L2,0),"-") -> 0
A3: 3 | D3: Santander | E3: =Kalkulator!I34 -> 0 | F3: =Kalkulator!I23 -> 0 | G3: =E3-F3 -> 0 | H3: 0.1284 | I3: =H3/12 -> 0.0107 | J3: =Kalkulator!H23 -> 5 | K3: =IFERROR(J3*12,120) -> 60 | L3: =(G3/K3)+G3*0.006 -> 0 | M3: =IFERROR(IF(J3=VLOOKUP(J3,A2:A7,1,0),L3,0),"-") -> 0
A4: 4
A5: 5
A6: 6
A7: 83 miesiące
A8: 7
A9: 8
A10: 9
A11: 10

Sheet Matryca (hidden)
A1: Podstawowy(<80) | B1: Nie dotyczy | E1: Podstawowy(<80) | F1: Nie dotyczy | I1: Podstawowy(<80) | J1: Nie dotyczy | M1: =Kalkulator!C9 -> Podwyższony | N1: =Kalkulator!B11 ->  | O1: =Kalkulator!C11 -> Pompa Ciepła | P1: =Kalkulator!C10 -> NIE | R1: TAK | S1: Najwyższy | T1: Pompa Ciepła
A2: Podstawowy(80-140) | B2: 19200 | E2: Podstawowy(80-140) | F2: 37200 | I2: Podstawowy(80-140) | J2: =B2+K21+1600 -> 43080 | R2: NIE | S2: Podwyższony | T2: Piec na pellet
A3: Podstawowy(>140) | B3: 33200 | E3: Podstawowy(>140) | F3: 51200 | I3: Podstawowy(>140) | J3: =B3+K21+1600 -> 57080 | N3: =IF(P1=R1,_xlfn.IFS(AND(M1=S1,O1=T1),J9,AND(M1=S2,O1=T1),J5,AND(M1=S1,O1=T2),F9,AND(M1=S2,O1=T2),F5,AND(M1=S1,O1=T3),F9,AND(M1=S2,O1=T3),F5),_xlfn.IFS(M1=S1,B9,M1=S2,B5)) -> 33600 | T3: Piec zagazowujący drewno
A4: Podwyższony(<80) | B4: Nie dotyczy | E4: Podwyższony(<80) | F4: Nie dotyczy | I4: Podwyższony(<80) | J4: Nie dotyczy
A5: Podwyższony(80-140) | B5: 33600 | E5: Podwyższony(80-140) | F5: 63900 | I5: Podwyższony(80-140) | J5: =B5+K22+1600 -> 74190
A6: Podwyższony(>140) | B6: 58100 | E6: Podwyższony(>140) | F6: 88400 | I6: Podwyższony(>140) | J6: =B6+K22+1600 -> 98690
A7: Najwyższy(<80) | B7: Nie dotyczy | E7: Najwyższy(<80) | F7: Nie dotyczy | I7: Najwyższy(<80) | J7: Nie dotyczy
A8: Najwyższy(80-140) | B8: Nie dotyczy | E8: Najwyższy(80-140) | F8: Nie dotyczy | I8: Najwyższy(80-140) | J8: Nie dotyczy
A9: Najwyższy(>140) | B9: 83000 | E9: Najwyższy(>140) | F9: 125600 | I9: Najwyższy(>140) | J9: =B9+K23+1600 -> 140300 | M9: Pompa + Termo | N9: 140300
M10: Kocioł + Termo | N10: 125600
M11: Termo | N11: 83000
N13: =IF(P1=R1,_xlfn.IFS(O1=T1,N9,O1=T2,N10,O1=T3,N10),N11) -> 83000
A15: termo | E15: kocioł + termo | I15: pompa + termo
E20: kocioł | F20: progi | G20: zł | I20: pompa | J20: progi | K20: zł
E21: 41000 | F21: 0.4 | G21: =E21*F21 -> 16400 | I21: 55700 | J21: 0.4 | K21: =I21*J21 -> 22280
F22: 0.7 | G22: =E21*F22 -> 28700 | J22: 0.7 | K22: =I21*J22 -> 38990
F23: 1 | G23: 41000 | J23: 1 | K23: 55700
